bitfinex/quotes_ETHUSD_20250523
["timestamp","ask_amount","ask_price","bid_price","bid_amount"]
[1747959164495,1.6606,2659.6,2659.2,3.76043353]
[1747959164696,1.6606,2659.6,2659.1,26.31]
[1747959165025,1.6606,2659.6,2659.2,3.76050049]
[1747959165200,3.75989027,2659.7,2659.2,3.76044087]
[1747959165530,4.30974362,2659.8,2659.3,3.76035778]
[1747959165827,1.02999813,2659.8,2659.4,19.98423631]
[1747959166030,1.6806,2659.9,2659.5,3.76007288]
[1747959166195,1.6806,2659.9,2659.8,11.75968117]
[1747959166196,0.02,2659.9,2659.8,11.75968117]
[1747959166393,0.02,2659.9,2659.8,34.311]
[1747959167224,0.02,2659.9,2659.8,38.07068117]
[1747959167426,0.02,2659.9,2659.8,26.311]
[1747959167735,0.02,2659.9,2659.8,30.07068117]
[1747959167929,0.02,2659.9,2659.8,26.311]
[1747959168752,0.02,2659.9,2659.8,26.309]
[1747959169642,0.02,2659.9,2659.8,38.06868117]
[1747959170810,0.02,2659.9,2659.8,52.56868117]
[1747959171211,0.02,2659.9,2659.8,26.25968117]
[1747959171418,0.02,2659.9,2659.8,52.56768117]
[1747959172699,0.02,2660.9,2659.9,8.0]
[1747959172897,0.02,2660.9,2660.7,3.75826824]
[1747959173147,0.02,2660.9,2660.8,54.28726819]
[1747959174017,0.02,2660.9,2660.8,46.28726819]
[1747959175800,0.02,2660.9,2660.8,54.28726819]
[1747959176528,0.02,2660.9,2660.8,46.28971599]
[1747959177441,0.02,2660.9,2660.8,54.28971599]
[1747959178649,0.02,2660.9,2660.8,43.02471599]
[1747959178846,0.02,2660.9,2660.8,54.28771599]
[1747959179141,0.02,2660.9,2660.8,54.28371599]
[1747959179514,0.02,2660.9,2660.8,27.98026819]
[1747959179720,0.02,2660.9,2660.8,54.28126819]
[1747959179902,0.02,2660.9,2660.8,35.01826819]
[1747959180098,0.02,2660.9,2660.8,31.256]
[1747959180333,0.02,2660.9,2660.8,18.79626819]
[1747959180741,0.02,2660.9,2660.8,26.79626819]
[1747959181345,0.02,2660.9,2660.8,38.05526819]
[1747959182243,0.02,2660.9,2660.8,11.75826819]
[1747959182443,0.02,2660.9,2660.8,38.05526819]
[1747959182947,1.6279,2661.8,2661.7,3.7569974]
[1747959183132,0.02,2661.9,2661.8,3.75685626]
[1747959183847,0.02,2661.9,2661.8,11.75685626]
[1747959185009,0.02,2661.9,2661.8,8.0]
[1747959185252,0.02,2661.9,2661.8,39.26409109]
[1747959185424,4.32671512,2661.9,2661.8,16.22209109]
[1747959185625,4.32671512,2661.9,2661.8,31.26409109]
[1747959185845,5.29141522,2661.9,2661.8,16.22209109]
[1747959186040,5.29141522,2661.9,2661.8,31.26409109]
[1747959186627,5.29141522,2661.9,2661.8,31.26309109]
[1747959186949,6.81291522,2661.9,2661.8,31.26309109]
[1747959187252,6.81291522,2661.9,2661.8,0.00609109]
[1747959187434,6.85988295,2661.9,2661.8,0.00609109]
[1747959187637,6.81291522,2661.9,2661.8,0.00609109]
[1747959188049,4.30713856,2661.6,2661.2,16.214]
[1747959188271,4.30756209,2661.3,2661.2,16.214]
[1747959188419,5.85326209,2661.3,2661.2,31.255]
[1747959188830,5.30326209,2661.3,2661.2,31.255]
[1747959189325,5.85326209,2661.3,2661.2,31.255]
[1747959189526,6.81433214,2661.3,2661.2,31.255]
[1747959190254,5.85326209,2661.3,2661.2,31.255]
[1747959191556,5.85326209,2661.3,2661.2,16.214]
[1747959191756,5.85326209,2661.3,2661.2,31.255]
[1747959192471,3.75840944,2660.7,2660.6,16.215]
[1747959192681,5.90180944,2660.7,2660.6,26.301]
[1747959193015,4.3085507,2660.6,2660.5,16.215]
[1747959193239,0.55,2660.6,2660.5,42.516]
[1747959193771,4.3085507,2660.6,2660.5,42.516]
[1747959195033,0.55,2660.6,2660.5,42.516]
[1747959195349,4.3085507,2660.6,2660.5,42.516]
[1747959196061,0.55,2660.6,2660.5,42.516]
[1747959196357,0.55,2660.6,2660.5,42.51985594]
[1747959196863,1.51601955,2660.6,2660.5,16.21885594]
[1747959197080,3.75897455,2660.3,2659.4,15.042]
[1747959197215,3.75794499,2661.1,2659.4,15.042]
[1747959197216,1.6017,2659.6,2659.4,15.042]
[1747959197628,0.55,2660.0,2659.6,3.7598485]
[1747959197825,0.55,2660.0,2659.6,3.7599639]
[1747959198124,3.75962757,2659.9,2659.5,8.0]
[1747959198330,4.3098077,2659.8,2659.6,26.305]
[1747959198528,4.3098077,2659.8,2659.7,15.044]
[1747959198740,0.55,2660.0,2659.7,15.044]
[1747959198931,4.31052948,2659.2,2659.1,0.02]
[1747959199127,5.84042948,2659.2,2659.1,15.064]
[1747959199715,5.84042948,2659.2,2659.1,0.02]
[1747959199942,5.84042948,2659.2,2659.1,15.064]
[1747959200859,1.5943,2659.6,2659.1,23.064]
[1747959201023,3.76034533,2659.4,2659.2,8.0]
[1747959201217,1.5943,2659.6,2659.2,8.0]
[1747959201422,1.5557,2659.8,2659.1,8.02]
[1747959201654,3.75996703,2659.6,2659.2,26.309]
[1747959201868,4.30988569,2659.7,2659.2,30.06951575]
[1747959202077,4.30988569,2659.7,2659.2,26.309]
[1747959202595,0.55,2659.7,2659.3,3.76032986]
[1747959202950,0.55,2659.7,2659.2,30.0694538]
[1747959203351,4.30984004,2659.7,2659.2,30.0694538]
[1747959203889,0.55,2659.7,2659.3,3.76038091]
[1747959204250,1.5557,2659.8,2659.2,26.309]
[1747959204469,1.5557,2659.8,2659.4,3.76018093]
[1747959204887,3.75983412,2659.7,2659.3,8.0]
[1747959205094,1.5557,2659.8,2659.3,11.76027258]
[1747959205388,1.5557,2659.8,2659.5,3.76010448]
[1747959205589,1.5557,2659.8,2659.6,15.048]
[1747959205895,3.75946705,2660.0,2659.7,3.75982253]
[1747959205896,0.55,2660.0,2659.7,3.75982253]
[1747959206191,1.5562,2660.4,2659.7,3.75974902]
[1747959206350,1.5562,2660.4,2659.6,15.048]
[1747959206547,0.55,2660.2,2659.8,0.00303733]
[1747959206948,3.75936388,2660.1,2659.9,15.048]
[1747959207454,3.75936388,2660.1,2660.0,0.0030371]
[1747959207882,3.75936388,2660.1,2659.9,15.048]
[1747959208279,3.75969583,2659.8,2659.1,0.02]
[1747959208596,4.30960408,2659.9,2659.5,8.0]
[1747959208908,1.5636,2659.8,2659.6,26.313]
[1747959209471,0.55,2659.9,2659.6,26.313]
[1747959209954,4.30956698,2659.9,2659.6,26.313]
[1747959210356,6.167328,2660.1,2659.3,8.0]
[1747959210357,0.55,2660.0,2659.3,8.0]
[1747959210557,2.40803734,2660.1,2659.1,0.02]
[1747959210558,0.55,2659.8,2659.4,15.048]
[1747959210794,4.31010528,2659.5,2659.4,15.048]
[1747959211775,0.55,2659.6,2659.4,15.048]
[1747959212205,0.55,2659.7,2659.4,15.048]
[1747959212414,4.30983118,2659.7,2659.4,15.048]
[1747959212761,4.30968835,2659.8,2659.4,15.048]
[1747959214097,4.30973545,2659.8,2659.4,15.048]
[1747959214804,3.7600251,2659.6,2659.4,15.048]
[1747959215013,4.30989762,2659.7,2659.5,15.049]
[1747959215157,5.9125639,2659.6,2659.5,15.049]
[1747959215603,1.6026,2660.3,2659.9,3.75953099]
[1747959215805,7.6026,2660.6,2660.1,8.0]
[1747959216004,1.6026,2660.6,2660.2,26.305]
[1747959216158,3.75873571,2660.5,2660.2,26.305]
[1747959216363,4.30881978,2660.5,2660.3,26.305]
[1747959216590,1.6026,2660.6,2660.3,26.305]
[1747959216765,5.36122052,2660.6,2660.3,26.305]
[1747959217007,3.75883325,2660.4,2660.1,8.0]
[1747959217163,0.55,2660.5,2660.2,26.305]
[1747959217370,3.75888929,2660.4,2660.2,26.305]
[1747959217565,3.75888929,2660.4,2660.1,8.0]
[1747959217805,0.55,2660.4,2660.1,8.0]
[1747959218008,4.30911585,2660.2,2660.1,8.0]
[1747959218307,0.55,2660.3,2660.1,34.305]
[1747959218663,4.3090443,2660.3,2660.1,34.305]
[1747959218899,4.30911585,2660.2,2660.1,26.305]
[1747959219503,4.30925717,2660.1,2660.0,16.223]
[1747959219672,4.30925717,2660.1,2660.0,50.526]
[1747959220638,4.30917268,2660.2,2660.0,50.526]
[1747959220840,4.30925717,2660.1,2660.0,50.526]
[1747959221339,6.7496966,2660.1,2660.0,31.261]
[1747959221743,4.30980024,2659.8,2659.7,11.265]
[1747959222042,4.30980024,2659.8,2659.7,26.303]
[1747959222403,5.9711639,2659.6,2659.5,16.222]
[1747959222603,5.9711639,2659.6,2659.5,31.26]
[1747959222604,1.6612,2659.6,2659.5,31.26]
[1747959222814,0.55,2659.7,2659.5,31.26]
[1747959223037,3.75940365,2660.0,2659.5,31.26]
[1747959223242,4.3096299,2659.9,2659.5,31.26]
[1747959223443,3.75955503,2659.9,2659.5,31.26]
[1747959224354,3.7595805,2659.9,2659.5,31.26]
[1747959224548,4.30945523,2660.0,2659.5,35.02005694]
[1747959225043,3.75989908,2659.7,2659.5,31.26]
[1747959225222,3.75974743,2659.8,2659.5,31.26]
[1747959225423,3.75989025,2659.7,2659.5,31.26]
[1747959225638,3.75975613,2659.8,2659.5,31.26]
[1747959226225,3.75984209,2659.7,2659.5,31.26]
[1747959226748,3.75974895,2659.8,2659.5,31.26]
[1747959227046,3.75989776,2659.7,2659.6,0.00303756]
[1747959227222,3.75974728,2659.8,2659.6,0.00303756]
[1747959227418,4.30982253,2659.7,2659.6,0.00303756]
[1747959227643,4.30982253,2659.7,2659.6,26.30803756]
[1747959228342,4.30982253,2659.7,2659.6,0.00303756]
[1747959228851,5.90152253,2659.7,2659.6,15.04203756]
[1747959229923,5.90152253,2659.7,2659.6,0.00303756]
[1747959230121,3.7599639,2659.6,2659.5,16.222]
[1747959230422,3.7599639,2659.6,2659.5,31.261]
[1747959232914,4.3099639,2659.6,2659.5,16.222]
[1747959235356,0.55,2659.6,2659.5,16.222]
[1747959235570,3.7599639,2659.6,2659.5,16.222]
[1747959235767,4.3099639,2659.6,2659.5,16.222]
[1747959236157,3.7599639,2659.6,2659.5,16.222]
[1747959236475,4.3099639,2659.6,2659.5,16.222]
[1747959237772,4.3099639,2659.6,2659.5,16.22503767]
[1747959240648,0.55,2659.6,2659.5,16.22503767]
[1747959240847,3.75953084,2660.0,2659.5,16.222]
[1747959241077,0.55,2659.9,2659.6,11.267]
[1747959241373,4.3099639,2659.6,2659.5,16.222]
[1747959241563,4.3099639,2659.6,2659.5,42.53]
[1747959241965,4.30990127,2659.7,2659.5,42.53]
[1747959242161,4.3099639,2659.6,2659.5,42.53]
[1747959242555,0.55,2659.6,2659.5,42.53]
[1747959242754,4.3099639,2659.6,2659.5,16.222]
[1747959243072,4.3099639,2659.6,2659.5,31.263]
[1747959243795,4.3099639,2659.6,2659.5,16.222]
[1747959244099,4.3099639,2659.6,2659.5,42.53]
[1747959244393,4.3099639,2659.6,2659.5,42.53167345]
[1747959245539,4.3099639,2659.6,2659.5,42.53067345]
[1747959245874,4.3099639,2659.6,2659.5,31.26367345]
[1747959246375,0.55,2659.5,2659.0,3.76072787]
[1747959246549,4.31004127,2659.6,2659.1,18.80057722]
[1747959246754,0.55,2659.6,2659.3,3.76035914]
[1747959246949,3.75987319,2659.7,2659.2,3.7605175]
[1747959246950,0.55,2659.7,2659.2,3.7605175]
[1747959247169,0.55,2659.7,2659.3,3.76028958]
[1747959247343,0.55,2659.7,2659.4,11.267]
[1747959247545,0.55,2659.7,2659.4,15.02724573]
[1747959247740,3.75912697,2660.2,2659.5,3.76008722]
[1747959247741,5.38512114,2660.1,2659.5,3.76008722]
[1747959247961,3.75943253,2660.0,2659.6,15.04]
[1747959248159,3.75955704,2659.9,2659.6,15.04]
[1747959248482,0.55,2659.9,2659.6,15.04]
[1747959248854,3.75975278,2659.8,2659.6,15.04]
[1747959249066,4.30962266,2659.9,2659.6,15.04]
[1747959249378,3.75982253,2659.7,2659.6,15.04]
[1747959249581,3.75974583,2659.8,2659.6,15.04]
[1747959249877,0.9694885,2659.9,2659.6,15.04]
[1747959250101,3.75962221,2659.9,2659.6,15.04]
[1747959250399,3.7596948,2659.8,2659.6,15.04]
[1747959250816,3.75982253,2659.7,2659.6,15.04]
[1747959251104,3.75997372,2659.6,2659.1,3.76055332]
[1747959251403,4.13616066,2659.5,2659.3,8.0]
[1747959251711,3.76016329,2659.5,2659.3,8.0]
[1747959251916,0.55,2659.5,2659.3,8.0]
[1747959252271,0.55,2659.6,2659.3,8.0]
[1747959252462,4.30998446,2659.6,2659.3,8.0]
[1747959252694,3.75974225,2659.8,2659.3,8.0]
[1747959252695,3.75987081,2659.7,2659.3,8.0]
[1747959252864,4.3100355,2659.6,2659.3,8.0]
[1747959253276,0.55,2659.6,2659.3,8.0]
[1747959253602,4.30999085,2659.6,2659.3,8.0]
[1747959253790,0.55,2659.6,2659.3,8.0]
[1747959255086,3.75940598,2660.0,2659.4,3.76245918]
[1747959255419,0.97592968,2660.1,2659.4,0.00228621]
[1747959255589,3.75938762,2660.1,2659.6,3.75989276]
[1747959255789,0.55,2660.0,2659.7,15.04]
[1747959255994,0.55,2660.0,2659.8,11.267]
[1747959256315,4.30943129,2660.0,2659.8,11.267]
[1747959256621,4.30943129,2660.0,2659.9,0.00228578]
[1747959258019,4.30943129,2660.0,2659.8,11.267]
[1747959258428,1.5071,2660.6,2659.9,3.75953983]
[1747959258650,3.7587069,2660.5,2660.0,8.0]
[1747959258825,3.75918907,2660.2,2659.3,8.0]
[1747959259027,3.75957449,2659.9,2659.3,8.0]
[1747959259331,0.55,2660.0,2659.5,3.76002603]
[1747959259495,3.75916449,2660.2,2659.8,8.0]
[1747959259828,3.75916449,2660.2,2659.9,15.039]
[1747959260000,3.75897455,2660.3,2660.0,11.266]
[1747959260323,3.75925717,2660.1,2660.0,11.266]
[1747959261013,3.75916024,2660.2,2660.0,11.266]
[1747959261528,3.75925717,2660.1,2660.0,11.266]
[1747959261688,3.75917606,2660.2,2660.0,11.266]
[1747959262125,1.12656085,2660.5,2660.0,11.266]
[1747959262321,3.75917884,2660.2,2660.0,11.266]
[1747959262531,0.55,2660.4,2660.0,11.266]
[1747959262728,3.75915074,2660.2,2660.0,11.266]
[1747959263506,3.7589812,2660.3,2660.0,11.266]
[1747959263929,3.7590391,2660.3,2660.0,11.266]
[1747959264241,3.7590391,2660.3,2660.1,0.00172011]
[1747959264608,1.5071,2660.6,2660.1,0.00172011]
[1747959264825,0.55,2660.6,2660.1,0.00172011]
[1747959265031,4.30911585,2660.2,2660.1,0.00172011]
[1747959265328,4.30911585,2660.2,2660.1,26.30472011]
[1747959265755,3.7594169,2660.0,2659.5,3.76003317]
[1747959265954,0.55,2660.2,2660.1,0.00172011]
[1747959266258,4.89117305,2660.2,2660.1,15.03972011]
[1747959266445,4.30911585,2660.2,2660.1,15.03972011]
[1747959266951,4.30911585,2660.2,2660.1,15.038]
[1747959268857,4.30911585,2660.2,2660.0,11.265]
[1747959269035,5.27067832,2660.3,2660.0,11.265]
[1747959269036,5.26732657,2660.1,2660.0,11.265]
[1747959269245,5.26732657,2660.1,2660.0,26.303]
[1747959270759,0.55,2659.9,2659.3,8.0]
[1747959270961,0.55,2660.2,2659.4,26.302]
[1747959271266,4.30960108,2659.9,2659.4,30.06222348]
[1747959271856,3.75977031,2659.8,2659.3,3.76037134]
[1747959272058,3.75977031,2659.8,2659.5,26.302]
[1747959272263,4.30962972,2659.9,2659.5,26.302]
[1747959272556,3.75990346,2659.7,2659.6,11.265]
[1747959272759,3.75974518,2659.8,2659.6,11.265]
[1747959272930,4.30960005,2659.9,2659.6,11.265]
[1747959273131,3.75974597,2659.8,2659.7,26.303]
[1747959273661,4.30974597,2659.8,2659.7,26.303]
[1747959274221,4.30977334,2659.8,2659.4,8.0]
[1747959274421,4.30977334,2659.8,2659.5,26.303]
[1747959274422,3.75991964,2659.7,2659.5,26.303]
[1747959274734,0.43099196,2659.7,2659.2,16.224]
[1747959274920,4.31004271,2659.6,2659.3,34.303]
[1747959275118,3.76021006,2659.5,2659.3,34.303]
[1747959275521,4.31004271,2659.6,2659.3,34.303]
[1747959275522,4.31003323,2659.6,2659.3,34.303]
[1747959275746,3.76019612,2659.5,2659.3,8.0]
[1747959275938,4.31019612,2659.5,2659.4,26.294]
[1747959276265,0.55,2659.5,2659.4,26.294]
[1747959276460,0.55,2659.5,2659.3,8.0]
[1747959276876,0.55,2659.5,2659.4,26.296]
[1747959277058,4.31010528,2659.5,2659.4,26.296]
[1747959277565,0.55,2659.5,2659.3,8.0]
[1747959277868,0.55,2659.5,2659.4,26.296]
[1747959278471,9.7592509,2660.2,2659.5,3.76004377]
[1747959278472,0.55,2659.9,2659.5,3.76004377]
[1747959278769,4.3095514,2659.9,2659.5,3.76004377]
[1747959278929,0.55,2659.9,2659.5,3.76004377]
[1747959279131,0.55,2659.9,2659.6,0.00151339]
[1747959279872,3.75970102,2659.8,2659.6,0.00151339]
[1747959280470,4.30960798,2659.9,2659.6,0.00151339]
[1747959281091,3.75970264,2659.8,2659.6,0.00151339]
[1747959281286,3.75982253,2659.7,2659.6,0.00151339]
[1747959281448,4.30972976,2659.8,2659.7,26.296]
[1747959283180,0.55,2659.8,2659.7,26.296]
[1747959284194,0.55,2660.0,2659.7,26.296]
[1747959284587,0.55,2660.1,2659.7,30.055743]
[1747959284913,0.55,2660.1,2659.8,3.75959897]
[1747959285055,0.55,2660.1,2659.9,15.03]
[1747959286164,6.0,2660.5,2659.9,15.03]
[1747959286350,3.7588979,2660.4,2660.0,15.03]
[1747959287162,6.0,2660.5,2660.0,15.03]
[1747959287495,3.75859586,2660.6,2660.1,3.75923388]
[1747959287696,3.7587135,2660.5,2660.2,27.489]
[1747959288960,3.75891387,2660.4,2660.2,27.489]
[1747959289300,3.75893115,2660.4,2660.2,27.489]
[1747959290712,3.75893115,2660.4,2660.3,26.294]
[1747959291019,4.30877151,2660.5,2660.3,26.294]
[1747959291310,4.30877151,2660.5,2660.2,16.223]
[1747959291474,4.30877151,2660.5,2660.4,26.293]
[1747959294513,4.30869197,2660.5,2660.4,26.293]
[1747959294918,0.55,2660.5,2660.4,26.293]
[1747959295088,4.30869197,2660.5,2660.4,26.293]
[1747959295489,0.55,2660.5,2660.4,26.293]
[1747959295913,0.02,2660.9,2660.4,26.293]
[1747959296112,0.46831435,2661.9,2660.6,3.7585507]
[1747959296362,0.46831435,2661.9,2661.6,3.75705035]
[1747959296570,0.46831435,2661.9,2660.7,1.56587532]
[1747959296717,0.46831435,2661.9,2661.8,8.0]
[1747959296911,0.46831435,2661.9,2661.8,50.511]
[1747959297143,0.46831435,2661.9,2661.8,24.22]
[1747959297326,0.02,2661.9,2661.8,50.511]
[1747959298923,5.94641512,2661.9,2661.8,16.22]
[1747959299242,1.6197,2661.0,2660.9,15.027]
[1747959299450,3.75798571,2661.0,2660.9,15.027]
[1747959299767,3.75826819,2660.8,2660.7,15.027]
[1747959300064,4.30826819,2660.8,2660.7,15.027]
[1747959300421,4.30840944,2660.7,2660.4,11.264]
[1747959300621,0.55,2660.7,2660.5,15.026]
[1747959300922,0.55,2660.9,2660.5,15.026]
[1747959301124,2.2097,2660.7,2660.3,16.22]
[1747959301326,0.55,2660.3,2660.1,17.45653315]
[1747959301746,0.55,2660.6,2660.1,17.45653315]
[1747959302047,1.5673,2661.0,2660.6,3.75842932]
[1747959302259,1.5797,2661.7,2660.7,26.289]
[1747959302463,0.04697155,2661.6,2660.8,26.289]
[1747959302675,1.5797,2661.7,2660.9,8.0]
[1747959302829,1.5797,2661.7,2661.0,3.75791617]
[1747959303222,1.5797,2661.7,2661.2,3.75762612]
[1747959303427,1.5797,2661.7,2661.3,15.025]
[1747959303627,1.5797,2661.7,2661.1,3.75775832]
[1747959303628,1.5797,2661.7,2660.8,8.0]
[1747959303851,1.5797,2661.7,2661.3,8.0]
[1747959304059,1.5797,2661.7,2660.9,26.287]
[1747959304060,1.5797,2661.7,2661.4,18.78238041]
[1747959304257,1.5797,2661.7,2661.5,15.025]
[1747959304480,0.55,2661.6,2661.5,15.025]
[1747959304626,0.76297,2661.6,2661.5,15.025]
[1747959305042,0.76297,2661.6,2660.6,8.0]
[1747959305269,4.5201178,2661.6,2660.9,3.7580386]
[1747959305468,0.55,2661.4,2660.8,8.0]
[1747959305674,0.55,2661.4,2660.9,3.7580131]
[1747959305891,0.55,2661.5,2660.8,11.75815683]
[1747959306029,0.55,2661.5,2661.2,8.0]
[1747959306229,0.55,2661.5,2661.3,15.025]
[1747959306434,0.55,2661.6,2661.3,18.78253734]
[1747959306737,1.5797,2661.7,2661.3,15.025]
[1747959306962,1.5797,2661.7,2661.2,11.75766527]
[1747959307182,0.55,2661.6,2660.6,8.0]
[1747959307378,0.55,2661.3,2660.8,11.75822869]
[1747959307538,1.5797,2661.7,2660.8,11.7581996]
[1747959307741,0.02,2661.9,2661.5,3.75717037]
[1747959307934,0.02,2661.9,2661.6,15.011]
[1747959308378,0.02,2661.9,2661.6,15.01251225]
[1747959308741,4.30692476,2661.8,2661.7,15.011]
[1747959309035,3.75703107,2661.7,2661.1,3.75779649]
[1747959309269,3.7569974,2661.7,2661.2,34.27]
[1747959309585,3.75723767,2661.6,2661.2,34.27151248]
[1747959309740,0.80642351,2661.6,2661.3,15.009]
[1747959310083,4.31922667,2661.9,2661.3,15.009]
[1747959310244,0.56245779,2661.9,2661.4,11.75888182]
[1747959310444,1.11245779,2661.9,2661.4,11.75888071]
[1747959310767,0.02,2661.9,2661.4,11.75879922]
[1747959311086,0.02,2661.9,2661.4,11.7574064]
[1747959311235,0.02,2661.9,2661.6,3.75711266]
[1747959311579,0.02,2661.9,2661.6,3.75704953]
[1747959311985,0.02,2661.9,2661.7,8.0]
[1747959312152,0.02,2661.9,2661.8,26.76485626]
[1747959312350,0.02,2661.9,2661.8,38.02485626]
[1747959313641,0.02,2661.9,2661.8,11.75685626]
[1747959313985,0.02,2661.9,2661.8,34.267]
[1747959314384,0.02,2661.9,2661.8,38.02385626]
[1747959314868,0.02,2661.9,2661.8,34.267]
[1747959315177,0.02,2661.9,2661.8,38.02385626]
[1747959315485,0.02,2661.9,2661.8,34.267]
[1747959315636,0.02,2661.9,2661.8,38.02385626]
[1747959315997,0.02,2661.9,2661.8,34.267]
[1747959316175,3.77671512,2661.9,2661.8,23.006]
[1747959316356,0.02,2661.9,2661.8,23.006]
[1747959316743,0.02,2661.9,2661.8,18.76285626]
[1747959317476,0.02,2661.9,2661.8,15.006]
[1747959318237,0.02,2661.9,2661.8,18.76285626]
[1747959318841,0.02,2661.9,2661.8,26.76285626]
[1747959319042,0.02,2661.9,2661.8,8.0]
[1747959319486,3.7569974,2661.7,2661.6,16.215]
[1747959320148,3.75756209,2661.3,2661.2,0.5904699]
[1747959320354,4.29050926,2661.7,2661.4,15.005]
[1747959320688,3.75727972,2661.5,2661.4,15.005]
[1747959320878,3.7569974,2661.7,2661.4,15.005]
[1747959322291,3.7572572,2661.6,2661.5,15.006]
[1747959322852,1.6603,2661.8,2661.0,3.75795422]
[1747959323053,3.75736046,2661.5,2661.2,11.258]
[1747959323275,3.75736046,2661.5,2661.3,15.006]
[1747959323555,3.7574209,2661.4,2661.3,15.006]
[1747959323954,0.54370231,2661.7,2661.3,15.006]
[1747959323955,3.75734209,2661.5,2661.3,15.006]
[1747959324170,3.7574209,2661.4,2661.3,15.006]
[1747959324986,0.75145934,2661.4,2660.9,8.0]
[1747959325156,5.92502694,2660.9,2660.8,0.5904699]
[1747959325768,1.6169,2660.9,2660.8,0.5904699]
[1747959326091,1.6321,2661.4,2660.8,12.34865259]
[1747959326262,3.75735707,2661.5,2661.0,11.75790382]
[1747959326448,3.75770501,2661.2,2661.0,8.0]
[1747959326648,3.75763248,2661.3,2661.0,8.0]
[1747959326848,3.75771071,2661.2,2661.0,8.0]
[1747959327115,3.75911585,2660.2,2659.9,15.006]
[1747959327313,3.75911585,2660.2,2660.0,15.007]
[1747959327908,3.75883325,2660.4,2660.0,15.007]
[1747959328112,1.5451,2660.5,2660.0,15.007]
[1747959328255,3.75922862,2660.2,2660.0,15.007]
[1747959328454,3.75925717,2660.1,2660.0,15.007]
[1747959328959,3.75925717,2660.1,2659.6,3.75996205]
[1747959329154,3.75902641,2660.3,2659.8,8.0]
[1747959329355,1.5451,2660.5,2660.0,3.75933026]
[1747959329573,5.30388528,2660.5,2660.0,8.0]
[1747959329772,3.75876124,2660.5,2660.0,3.75932892]
[1747959330004,3.75840944,2660.7,2660.1,3.75918998]
[1747959330308,1.5165,2660.8,2660.2,23.009]
[1747959330606,3.75865864,2660.6,2660.3,15.009]
[1747959330787,3.75883325,2660.4,2660.3,15.009]
[1747959330990,3.75875375,2660.5,2660.3,15.009]
[1747959331172,3.75862439,2660.6,2660.3,15.009]
[1747959331376,3.75881032,2660.5,2660.3,15.009]
[1747959331575,3.75874078,2660.5,2660.3,15.009]
[1747959331774,3.75874078,2660.5,2660.4,15.009]
[1747959334832,3.75876197,2660.5,2660.2,15.01]
[1747959334980,3.75966256,2659.9,2659.6,0.18792579]
[1747959335164,3.75953983,2659.9,2659.8,8.0]
[1747959336004,9.75899324,2660.3,2659.8,8.0]
[1747959336005,3.75914157,2660.2,2659.8,8.0]
[1747959336203,3.75927168,2660.1,2659.8,8.0]
[1747959336408,3.75927168,2660.1,2659.7,15.01]
[1747959336409,6.0,2660.3,2659.9,15.012]
[1747959336596,3.75939849,2660.0,2659.9,23.012]
[1747959336782,3.75988703,2659.7,2659.3,8.0]
[1747959336965,3.75988703,2659.7,2659.4,15.111]
[1747959337168,1.5588,2659.9,2659.4,15.111]
[1747959337509,3.75976239,2659.8,2659.4,15.111]
[1747959337811,1.5588,2659.9,2659.4,18.87120715]
[1747959337971,3.75974915,2659.8,2659.5,11.262]
[1747959338311,3.75990482,2659.7,2659.5,11.262]
[1747959338484,3.75990482,2659.7,2659.6,0.00151339]
[1747959338681,3.75975519,2659.8,2659.6,8.00151339]
[1747959339180,3.75969092,2659.8,2659.6,8.00151339]
[1747959339570,3.75928851,2660.1,2659.6,8.00151339]
[1747959340113,3.75928851,2660.1,2659.6,11.76140625]
[1747959340413,3.75940214,2660.0,2659.6,8.00151339]
[1747959340782,3.75932484,2660.1,2659.6,11.76140629]
[1747959341114,3.75955776,2659.9,2659.6,8.3788336]
[1747959341292,3.75947472,2660.0,2659.6,8.3788336]
[1747959341495,1.6022,2660.2,2659.6,8.37732021]
[1747959341694,3.75979736,2659.8,2659.6,0.37732021]
[1747959341901,3.75961163,2659.9,2659.5,11.262]
[1747959342274,3.75962117,2659.9,2659.5,11.262]
[1747959342498,3.75963898,2659.9,2659.5,11.262]
[1747959342697,3.75942629,2660.0,2659.5,11.262]
[1747959342899,3.75969125,2659.8,2659.5,11.262]
[1747959343380,3.75960542,2659.9,2659.5,11.262]
[1747959343680,3.75979268,2659.8,2659.5,11.262]
[1747959343889,3.75961779,2659.9,2659.5,11.262]
[1747959344071,3.75949304,2660.0,2659.5,15.02204026]
[1747959344474,0.91209995,2660.0,2659.6,15.113]
[1747959344777,3.76052948,2659.2,2659.1,0.02]
[1747959344972,3.76052948,2659.2,2659.1,23.133]
[1747959345279,1.5172,2659.4,2659.1,15.50643234]
[1747959345875,5.27756386,2659.4,2659.1,15.50643234]
[1747959346100,3.76044099,2659.3,2659.1,15.50643234]
[1747959346625,3.76052948,2659.2,2659.1,15.50643234]
[1747959346820,1.5172,2659.4,2659.1,15.50643234]
[1747959347121,3.76034183,2659.4,2659.1,15.50643234]
[1747959347294,3.7601682,2659.5,2659.1,15.50643234]
[1747959347619,3.76032189,2659.4,2659.1,15.50643234]
[1747959348117,3.76032189,2659.4,2658.8,8.08014465]
[1747959348413,6.0,2659.6,2658.9,18.87594637]
[1747959348601,6.0,2659.6,2659.4,3.76011993]
[1747959348801,6.0,2659.6,2659.5,15.115]
[1747959349307,6.0,2660.2,2659.6,3.75987293]
[1747959349483,3.75940327,2660.0,2659.5,15.115]